[Event "Budapest IM-B ONE WEEK Feb 2024"]
[Site "Budapest"]
[Date "2024.02.28"]
[Round "4.4"]
[White "Polyik, Peter"]
[Black "Velikic, Adela"]
[Result "1-0"]
[ECO "A13"]
[WhiteElo "2289"]
[BlackElo "2266"]
[Annotator "TA"]
[PlyCount "89"]
[EventDate "2024.02.25"]
[EventType "tourn"]
[EventCountry "HUN"]
[SourceTitle "playchess.com"]
[Source "ChessBase"]
[SourceQuality "1"]
[TimeControl "5400+30"]

{[%evp 9,89,17,21,10,16,12,13,18,15,10,18,11,17,0,23,24,28,25,27,17,26,18,12,18,18,1,6,8,14,0,0,0,6,4,13,11,8,5,8,0,13,0,6,0,2,0,15,16,15,16,43,48,93,103,117,68,78,85,135,135,247,186,344,348,345,354,375,382,427,433,444,421,579,595,610,577,29985,29986,29986,29987,29987,29987]} 1. c4 {[%emt 0:00:04]} e6 {[%emt 0:00:10]} 2. g3 {[%emt 0:00:30]} d5 {[%emt 0:00:09]} 3. Bg2 {[%emt 0:00:06]} d4 {[%emt 0:00:12]} 4. Nf3 {[%emt 0:00:34]} Nc6 {[%emt 0:00:13]} 5. O-O {[%emt 0:00:43]} Bc5 {[%emt 0:00:13]} 6. d3 {[%emt 0:00:24]} Nf6 {[%emt 0:00:15]} 7. Nbd2 {[%emt 0:00:56][%cal Bb1d2,Bd2b3,Bb3c5][%mdl 32]} O-O {[%emt 0:00:24]} 8. Nb3 {[%emt 0:01:12] The position is equal.} Be7 {[%emt 0:00:12]} 9. e3 {[%emt 0:00:29]} dxe3 {[%emt 0:00:37]} 10. Bxe3 {[%emt 0:00:12]} Ng4 {[%emt 0:00:44]} 11. Bc5 {[%emt 0:03:49]} Bxc5 {[%emt 0:28:10]} 12. Nxc5 {[%emt 0:00:06]} Rb8 {[%emt 0:05:11]} 13. d4 {[%emt 0:11:21]} b6 {[%emt 0:04:06]} 14. Ne4 {[%emt 0:00:54]} Nf6 {[%emt 0:11:08]} 15. Nc3 {[%emt 0:01:39]} Bb7 {[%emt 0:01:45]} 16. Re1 {[%emt 0:01:27]} Ne7 {[%emt 0:04:47]} 17. Qd3 {[%emt 0:15:43]} c5 {[%emt 0:07:47]} 18. Rad1 {[%emt 0:00:20]} cxd4 {[%emt 0:01:30]} 19. Nxd4 {[%emt 0:12:23]} Bxg2 {[%emt 0:00:27]} 20. Kxg2 {[%emt 0:00:07]} Qc8 {[%emt 0:01:45]} 21. b3 {[%emt 0:01:00]} Rd8 {[%emt 0:04:29]} 22. Qf3 {[%emt 0:00:47]} a6 {[%emt 0:01:09]} 23. Nc2 {[%emt 0:16:35]} b5 {[%emt 0:15:35]} 24. Rxd8+ {[%emt 0:07:04]} Qxd8 {[%emt 0:00:02]} 25. Rd1 {[%emt 0:00:29]} Qc8 {[%emt 0:00:32]} 26. Ne3 {[%emt 0:06:04]} h6 {[%emt 0:02:20]} 27. h4 {[%emt 0:00:18]} Nc6 {[%emt 0:05:07]} 28. Ne4 {[%emt 0:01:59]} Nxe4 {[%emt 0:00:38]} 29. Qxe4 {[%emt 0:00:06]} Nb4 {[%emt 0:01:53]} 30. a3 {[%emt 0:03:21]} f5 {[%emt 0:03:03]} 31. Qf4 $36 {[%emt 0:02:30][%mdl 2048] White is really pushing.} Nc6 {[%emt 0:00:28]} 32. b4 {[%emt 0:01:17]} (32. Rd6 $16) 32... bxc4 {[%emt 0:00:56]} 33. Nxc4 {[%emt 0:03:18]} Ne7 {[%emt 0:00:28] [#]} (33... Kh7 $142) 34. Qd6 $1 $16 {[%emt 0:01:57] White is much more active. Black is weak on the dark squares} Qc6+ {[%emt 0:00:33]} (34... Nd5 $16 {is a better defense.}) 35. Kg1 {[%emt 0:01:08]} Rc8 {[%emt 0:00:16]} (35... Re8) 36. Qxe7 $18 {[%emt 0:02:18][%cal Od1d7] Threatens to win with Rd7!} Qxc4 {[%emt 0:00:08][%mdl 4096] Endgame. KQR-KQR} 37. Rd7 {[%emt 0:00:07][%csl Gd7][%cal Re7g7]} Qc1+ {[%emt 0:00:12]} 38. Kg2 {[%emt 0:00:18]} Qc3 {[%emt 0:00:55]} 39. Qxe6+ {[%emt 0:00:20]} Kh8 {[%emt 0:00:05]} 40. Qxf5 {[%emt 0:00:41]} Qxa3 {[%emt 0:00:25]} 41. Qe5 {[%emt 0:02:41]} Rg8 {[%emt 0:00:19]} 42. Rd6 {[%emt 0:00:13][%cal Rd6h6] [#]} Rf8 {[%emt 0:00:55]} 43. Rxh6+ {[%emt 0:00:31] White mates.} Kg8 {[%emt 0:00:02]} 44. Qd5+ {[%emt 0:00:17]} Rf7 {[%emt 0:00:06]} 45. Rd6 {[%emt 0:00:24] Weighted Error Value: White=0.06 (flawless) /Black=0.39.  Mistake:       	White=1     	Black=3      Inaccurate:     	---       	Black=4      OK:         	White=17    	Black=12     Best:        	White=2     	Black=1      Strong:       	White=1     	---} 1-0

[Event "Budapest IM-B ONE WEEK Feb 2024"]
[Site "Budapest"]
[Date "2024.02.28"]
[Round "4.5"]
[White "Golis, Wiktor"]
[Black "Mouhamad, Joachim"]
[Result "1/2-1/2"]
[ECO "B66"]
[WhiteElo "2123"]
[BlackElo "2316"]
[Annotator "TA"]
[PlyCount "93"]
[EventDate "2024.02.25"]
[EventType "tourn"]
[EventCountry "HUN"]
[SourceTitle "playchess.com"]
[Source "ChessBase"]
[SourceQuality "1"]
[TimeControl "5400+30"]

{[%evp 19,93,0,11,-63,-71,-87,-19,-15,-24,-26,0,0,0,-4,5,0,18,-30,7,0,8,1,12,10,40,11,20,14,16,0,0,0,17,0,0,0,0,0,0,0,0,-30,-5,-20,-10,-27,0,-58,-20,-41,-35,-204,-170,-256,-255,-227,-67,-41,-44,-41,0,0,0,0,0,0,0,0,0,0,0,0,0,0,0,0]} 1. e4 {[%emt 0:00:15]} c5 {[%emt 0:00:28]} 2. Nf3 {[%emt 0:00:14]} d6 {[%emt 0:00:15]} 3. d4 {[%emt 0:00:09]} cxd4 {[%emt 0:00:06]} 4. Nxd4 {[%emt 0:00:07]} Nf6 {[%emt 0:00:12]} 5. Nc3 {[%emt 0:00:07]} Nc6 {[%emt 0:00:15]} 6. Bg5 {[%emt 0:00:35]} e6 {[%emt 0:00:18]} 7. Qd2 {[%emt 0:00:17]} a6 {[%emt 0:02:17]} 8. Nxc6 {[%emt 0:01:13]} bxc6 {[%emt 0:00:09]} 9. O-O-O {[%emt 0:00:16]} h6 {[%emt 0:04:22]} 10. Bf4 {[%emt 0:10:09]} d5 $1 {[%emt 0:00:29]} 11. e5 {[%emt 0:18:37]} (11. f3 $11) 11... Nd7 $15 {[%emt 0:00:35]} 12. Na4 {[%emt 0:01:18]} Nc5 {[%emt 0:06:16]} (12... c5 $17) 13. Nxc5 $11 {[%emt 0:03:06]} Bxc5 {[%emt 0:00:10]} 14. Be3 {[%emt 0:07:56]} Qb6 {[%emt 0:05:47]} 15. Bxc5 {[%emt 0:01:21]} Qxc5 {[%emt 0:00:03]} 16. f4 {[%emt 0:00:22]} Rb8 {[%emt 0:03:07]} 17. h4 {[%emt 0:05:06]} Qb6 {[%emt 0:04:08]} 18. Qc3 {[%emt 0:02:06]} (18. c4 $142) 18... Qb4 {[%emt 0:03:01]} 19. Qxb4 {[%emt 0:03:59]} Rxb4 {[%emt 0:00:03] [#]} 20. c4 $1 {[%emt 0:09:04]} O-O {[%emt 0:29:56]} (20... a5 21. Rh3) 21. Rh3 {[%emt 0:03:03]} f6 {[%emt 0:04:27]} 22. a3 {[%emt 0:07:58]} Rb7 {[%emt 0:01:38]} 23. cxd5 {[%emt 0:05:22]} cxd5 {[%emt 0:00:10]} 24. exf6 {[%emt 0:01:17]} (24. Bxa6 $2 Rc7+ 25. Kb1 Bxa6 $19) 24... Rc7+ {[%emt 0:00:36]} 25. Kd2 {[%emt 0:04:49]} gxf6 {[%emt 0:06:31]} 26. Rg3+ {[%emt 0:01:04]} Kf7 {[%emt 0:01:05]} 27. Bd3 {[%emt 0:00:54]} Rg8 {[%emt 0:00:56]} 28. Rxg8 {[%emt 0:00:31]} Kxg8 {[%emt 0:00:02][%mdl 4096] Endspiel. KRB-KRB} 29. Ke3 {[%emt 0:05:31]} e5 {[%emt 0:05:48]} 30. Bb1 {[%emt 0:01:41]} Bb7 {[%emt 0:08:04]} 31. Bf5 {[%emt 0:01:48]} Kf7 {[%emt 0:02:51] Verhindert Be6+.} 32. g4 {[%emt 0:01:11]} Rc4 {[%emt 0:02:30]} 33. fxe5 {[%emt 0:00:07]} (33. Rf1 $1 $11 Kg7 34. Be6) 33... fxe5 $15 {[%emt 0:00:02]} 34. Rf1 {[%emt 0:00:48] Schwarz muss nun Bd3+ beachten.} Ke7 {[%emt 0:03:57]} 35. g5 $2 {[%emt 0:02:28]} (35. Kd2 $15) 35... Rxh4 $19 {[%emt 0:02:11]} 36. g6 {[%emt 0:00:41]} (36. Bg6 {kämpft weiter.} d4+ (36... hxg5 37. Rf7+ Kd6 38. Rxb7 $11) 37. Kd2 Rh2+ (37... hxg5 38. Rf7+ Ke6 39. Rxb7 $11) 38. Ke1) 36... d4+ {[%emt 0:00:46]} 37. Kd3 {[%emt 0:00:40] [#]} Bd5 $2 {[%emt 0:00:50]} (37... Rh2 $1 $19 38. Bg4 Bd5 (38... Rxb2 $2 {ist das falsche Schlagen.} 39. Rf7+ Ke8 40. Be6 $18)) 38. g7 $1 $15 {[%emt 0:01:35]} Rh5 {[%emt 0:01:36] Und ...Rg5 würde nun gewinnen.} 39. Be4 $1 {[%emt 0:01:08]} Bxe4+ {[%emt 0:02:08]} 40. Kxe4 {[%emt 0:00:01] KR-KR. Die Stellung ist ausgeglichen.} Rg5 {[%emt 0:00:12][%cal Oe7e6] ...Ke6! ist eine echte Drohung.} 41. Rh1 {[%emt 0:00:35]} Rxg7 {[%emt 0:01:54] Droht ...Kf6 und aus.} 42. Kxe5 {[%emt 0:00:45]} d3 {[%emt 0:00:25]} 43. Rxh6 {[%emt 0:00:38]} Rg2 {[%emt 0:00:46] Zielt auf ...Re2+ ab.} 44. Kd4 {[%emt 0:00:55]} Rxb2 {[%emt 0:00:33]} 45. Kxd3 {[%emt 0:00:10]} Rb3+ {[%emt 0:00:04]} 46. Kc4 {[%emt 0:00:09]} Rxa3 {[%emt 0:00:06]} 47. Kc5 {[%emt 0:00:50] Gewichteter Fehlerwert: Weiß=0.20 (präzise) /Schwarz=0.18 (sehr präzise) .  Verlustzug:     	Weiß=1     	---        Fehler:       	Weiß=3     	Schwarz=2     Ungenau:       	Weiß=2     	Schwarz=5     OK:         	Weiß=14    	Schwarz=9     Bester:       	Weiß=1     	Schwarz=6     Stark:        	Weiß=2     	---} 1/2-1/2

[Event "Budapest IM-B ONE WEEK Feb 2024"]
[Site "Budapest"]
[Date "2024.02.28"]
[Round "5.1"]
[White "Mouhamad, Joachim"]
[Black "Skytte, Rasmus"]
[Result "1/2-1/2"]
[ECO "B06"]
[WhiteElo "2316"]
[BlackElo "2342"]
[Annotator "TA"]
[PlyCount "63"]
[EventDate "2024.02.25"]
[EventType "tourn"]
[EventCountry "HUN"]
[SourceTitle "playchess.com"]
[Source "ChessBase"]
[SourceQuality "1"]
[TimeControl "5400+30"]

{[%evp 11,63,54,59,50,61,52,54,52,67,56,82,77,58,60,68,46,42,35,72,51,70,62,79,81,72,76,87,85,116,119,110,88,93,84,88,89,81,37,42,0,0,0,0,0,0,0,0,0,0,-179,-183,-177,-185,-158]} 1. e4 {[%emt 0:00:04]} g6 {[%emt 0:00:17]} 2. d4 {[%emt 0:00:08]} Bg7 {[%emt 0:00:05]} 3. Nf3 {[%emt 0:00:10]} d6 {[%emt 0:00:10]} 4. Be2 {[%emt 0:00:12]} Nd7 {[%emt 0:02:50]} 5. O-O {[%emt 0:00:14]} e5 {[%emt 0:00:11]} 6. dxe5 {[%emt 0:00:10]} dxe5 {[%emt 0:00:13]} 7. Bc4 {[%emt 0:00:22] [#] Ng5 would now be deadly.} Ngf6 {[%emt 0:01:08][%cal Oe8g8,Bg8f6,Bf6e8,Be8c7][%mdl 32]} 8. a4 {[%emt 0:06:15]} O-O {[%emt 0:02:34]} 9. Nc3 {[%emt 0:02:17] White is slightly better.} c6 {[%emt 0:08:34]} 10. Qd6 {[%emt 0:10:09][%cal Of1d1]} Ne8 {[%emt 0:07:46]} 11. Qd3 {[%emt 0:01:25] White is much more active.} Nc7 {[%emt 0:09:51]} 12. Rd1 {[%emt 0:02:50]} Qe7 {[%emt 0:05:05]} 13. Qd6 {[%emt 0:29:17]} Qxd6 {[%emt 0:01:30]} 14. Rxd6 {[%emt 0:00:03]} Nc5 {[%emt 0:08:54]} 15. Be3 {[%emt 0:02:02]} N5e6 {[%emt 0:00:47][%cal Bc5e6,Be6d8,Bd8e6][%mdl 32]} 16. a5 {[%emt 0:04:01]} Rd8 {[%emt 0:08:13]} 17. Rxd8+ {[%emt 0:00:32]} Nxd8 {[%emt 0:00:05]} 18. Na4 {[%emt 0:01:39]} Nde6 {[%emt 0:03:03]} 19. Rd1 {[%emt 0:00:41]} Bf6 {[%emt 0:01:10]} 20. h3 {[%emt 0:10:38]} Kg7 {[%emt 0:01:57]} 21. b3 {[%emt 0:04:36]} h5 {[%emt 0:02:27]} 22. Nc5 {[%emt 0:05:44]} Nxc5 {[%emt 0:02:56]} 23. Bxc5 {[%emt 0:00:03]} Be6 {[%emt 0:02:32]} 24. Bd6 {[%emt 0:10:57]} Rd8 {[%emt 0:01:53] Strongly threatening ...Ne8.} 25. Be2 {[%emt 0:03:45]} (25. Nxe5 $2 Rxd6 26. Rxd6 Bxe5 $19) 25... Nb5 {[%emt 0:00:58]} 26. Bxb5 {[%emt 0:03:11]} (26. Bxe5 Rxd1+ 27. Bxd1 Nc3 $17) 26... cxb5 {[%emt 0:00:09]} 27. Kf1 {[%emt 0:00:30]} (27. Nxe5 $2 Be7 (27... Rxd6 $2 28. Rxd6 Bxe5 29. Rd8 $19) 28. Nxf7 Kxf7 $19) 27... g5 {[%emt 0:01:04]} 28. Rd3 {[%emt 0:01:16]} (28. Nxe5 $2 Be7 (28... Rxd6 $2 29. Rxd6 Bxe5 30. Rd8 $19) 29. Bxe7 Rxd1+ 30. Ke2 Rc1 $19) 28... g4 {[%emt 0:01:17]} 29. hxg4 {[%emt 0:00:01]} (29. Bxe5 $2 {too greedy.} Rxd3 30. Bxf6+ Kxf6 $19) (29. Nxe5 $2 Rxd6 30. Rxd6 Bxe5 $19) 29... hxg4 {[%emt 0:00:12]} 30. Nxe5 {[%emt 0:00:25] [#]} (30. Bxe5 $2 {loses.} Rxd3 31. cxd3 gxf3 $19) (30. Nh2 $11 {and White is okay.}) 30... Rxd6 $1 $19 {[%emt 0:01:03][%mdl 512]} 31. Rxd6 {[%emt 0:00:18]} Bxe5 {[%emt 0:00:10]} 32. Rd8 {[%emt 0:01:26] Weighted Error Value: White=0.19 (very precise) /Black=0.07 (flawless) .  Loses game:     	White=1     	---        Inaccurate:     	White=2     	Black=3      OK:         	White=12    	Black=12     Brilliant:      	---       	Black=1} 1/2-1/2

[Event "Budapest IM-B ONE WEEK Feb 2024"]
[Site "Budapest"]
[Date "2024.02.28"]
[Round "5.2"]
[White "Velikic, Adela"]
[Black "Golis, Wiktor"]
[Result "1-0"]
[ECO "D45"]
[WhiteElo "2266"]
[BlackElo "2123"]
[Annotator "TA"]
[PlyCount "95"]
[EventDate "2024.02.25"]
[EventType "tourn"]
[EventCountry "HUN"]
[SourceTitle "playchess.com"]
[Source "ChessBase"]
[SourceQuality "1"]
[TimeControl "5400+30"]

{[%evp 20,95,24,0,7,-8,54,40,47,44,45,45,118,124,157,146,179,174,166,166,276,254,295,306,335,323,360,332,517,479,601,595,741,387,409,379,399,391,375,383,435,389,466,298,379,365,423,243,234,214,212,133,138,139,152,11,17,18,311,298,316,304,476,478,490,465,485,451,1690,1649,1504,1627,1503,1762,2070,1876,1943,1832]} 1. c4 {[%emt 0:00:05]} e6 {[%emt 0:00:18]} 2. Nc3 {[%emt 0:00:19]} d5 {[%emt 0:00:08]} 3. d4 {[%emt 0:00:09]} c6 {[%emt 0:00:09]} 4. Nf3 {[%emt 0:00:11]} Nf6 {[%emt 0:00:07]} 5. e3 {[%emt 0:00:11]} Nbd7 {[%emt 0:00:18]} 6. Qc2 {[%emt 0:00:17]} Bd6 {[%emt 0:00:10]} 7. Bd3 {[%emt 0:00:13]} dxc4 {[%emt 0:00:22]} 8. Bxc4 {[%emt 0:00:10]} b5 {[%emt 0:00:47]} 9. Bd3 {[%emt 0:00:11]} Bb7 {[%emt 0:06:18]} 10. O-O {[%emt 0:00:46]} O-O {[%emt 0:05:29]} 11. a3 {[%emt 0:02:08]} h6 {[%emt 0:13:11]} 12. h3 {[%emt 0:04:47]} Qe7 {[%emt 0:02:55]} (12... a6 $11) 13. e4 $14 {[%emt 0:07:21] Threatens to win with e5.} e5 {[%emt 0:00:47] White is slightly better.} 14. Be3 {[%emt 0:08:46]} a6 {[%emt 0:10:16]} 15. Nh4 {[%emt 0:12:34][%cal Bf3h4,Bh4f5,Bf5d4][%mdl 32] Hoping for Nf5.} Bb8 {[%emt 0:11:33]} (15... g6 $14) 16. Nf5 $16 {[%emt 0:02:01]} Qe6 {[%emt 0:01:45]} 17. Rad1 {[%emt 0:16:57]} exd4 {[%emt 0:04:32]} 18. Nxd4 {[%emt 0:00:18]} Qe8 {[%emt 0:00:38]} 19. Nf5 {[%emt 0:02:52]} c5 {[%emt 0:03:04]} (19... Ne5 $142 20. f4 Nxd3) 20. Qc1 {[%emt 0:05:04]} Qe5 {[%emt 0:18:07]} 21. f4 {[%emt 0:02:28] Active counter play!} Qe6 {[%emt 0:01:06]} 22. e5 {[%emt 0:02:12]} Nh5 {[%emt 0:07:27]} 23. g4 {[%emt 0:12:18]} g6 {[%emt 0:03:50]} (23... c4 {keeps fighting.}) 24. Nxh6+ $18 {[%emt 0:08:33]} Kg7 {[%emt 0:00:03]} 25. Be4 {[%emt 0:02:25]} Ra7 {[%emt 0:02:40]} 26. Rf3 {[%emt 0:06:39] Dodges Ng3} f5 {[%emt 0:06:40]} 27. Bxb7 {[%emt 0:02:35]} Rxb7 {[%emt 0:00:13]} 28. Nxf5+ {[%emt 0:01:25]} gxf5 {[%emt 0:00:46]} 29. gxh5 {[%emt 0:00:07]} Kh7 {[%emt 0:00:30]} 30. Kf2 {[%emt 0:00:57]} Rg8 {[%emt 0:00:40]} 31. Rg1 {[%emt 0:00:02]} Rxg1 {[%emt 0:00:38]} 32. Qxg1 {[%emt 0:00:06]} b4 {[%emt 0:00:11] [#]} 33. Qg6+ {[%emt 0:01:14]} Qxg6 {[%emt 0:00:07]} 34. hxg6+ {[%emt 0:00:03]} Kxg6 {[%emt 0:00:15]} 35. Nd5 {[%emt 0:00:42] aiming for e6.} bxa3 {[%emt 0:00:48]} 36. bxa3 {[%emt 0:00:01] Strongly threatening e6.} Kf7 {[%emt 0:00:20]} 37. Rg3 {[%emt 0:01:00]} ({White should try} 37. Ke2 $16) 37... Ke6 $11 {[%emt 0:01:07]} 38. Nc3 {[%emt 0:00:47]} Rb2+ $2 {[%emt 0:00:43][%mdl 8192] [#] This move loses the game for Black.} (38... Nxe5 $1 $11 {and Black is okay.} 39. fxe5 Bxe5) 39. Ne2 $1 $18 {[%emt 0:00:25]} Kf7 {[%emt 0:00:27]} 40. Rg5 {[%emt 0:00:29]} c4 {[%emt 0:00:27]} (40... Bxe5 {was necessary.} 41. fxe5 Nxe5 42. Rxf5+ (42. Bxc5 Kf6 $18) 42... Ke6) 41. Bd4 {[%emt 0:00:22] White is clearly winning.} Rb3 {[%emt 0:00:36]} 42. Rxf5+ {[%emt 0:00:25]} Ke6 {[%emt 0:00:01]} 43. Rh5 {[%emt 0:00:18]} Rxa3 {[%emt 0:00:54]} (43... Kd5 $142 44. Rh8 Rxa3) 44. f5+ {[%emt 0:00:59]} Kd5 {[%emt 0:00:33]} 45. e6 {[%emt 0:00:16][%cal Oe6e7] Black must now prevent e7!} Nf6 {[%emt 0:00:33]} 46. Bxf6 {[%emt 0:00:13]} Ba7+ {[%emt 0:00:05]} 47. Kg2 {[%emt 0:00:46]} Re3 {[%emt 0:00:08]} 48. Nc3+ {[%emt 0:00:33] Weighted Error Value: White=0.50/Black=0.56.  Loses game:     	---       	Black=1      Mistake:       	White=2     	Black=6      Inaccurate:     	White=2     	---        OK:         	White=13    	Black=8      Best:        	White=3     	Black=2      Strong:       	White=1     	---} 1-0

[Event "Budapest IM-B ONE WEEK Feb 2024"]
[Site "Budapest"]
[Date "2024.02.28"]
[Round "5.4"]
[White "Poysti, Nathanael"]
[Black "Haszon, David"]
[Result "0-1"]
[ECO "A14"]
[WhiteElo "2163"]
[BlackElo "2245"]
[Annotator "RC"]
[PlyCount "120"]
[EventDate "2024.02.25"]
[EventType "tourn"]
[EventCountry "HUN"]
[SourceTitle "playchess.com"]
[Source "ChessBase"]
[SourceQuality "1"]
[TimeControl "5400+30"]

1. c4 {[%emt 0:00:03]} e6 {[%emt 0:00:09]} 2. g3 {[%emt 0:00:05]} d5 {[%emt 0:00:11]} 3. Bg2 {[%emt 0:00:05]} Nf6 {[%emt 0:00:11]} 4. Nf3 {[%emt 0:00:05]} Be7 {[%emt 0:00:11]} 5. O-O {[%emt 0:00:10]} O-O {[%emt 0:00:10]} 6. b3 {[%emt 0:00:08]} c5 {[%emt 0:00:35]} 7. cxd5 {[%emt 0:00:12]} exd5 {[%emt 0:00:39]} 8. d4 {[%emt 0:00:02]} Nc6 {[%emt 0:01:22]} 9. Bb2 {[%emt 0:00:19]} Ne4 {[%emt 0:05:33]} 10. dxc5 {[%emt 0:10:49]} Bxc5 {[%emt 0:05:00]} 11. Nc3 {[%emt 0:07:31]} Nxc3 {[%emt 0:03:52]} 12. Bxc3 {[%emt 0:00:03]} d4 {[%emt 0:00:49]} 13. Bb2 {[%emt 0:01:26]} Bf5 {[%emt 0:02:33]} 14. Rc1 {[%emt 0:05:12]} Bb6 {[%emt 0:05:20]} 15. Qd2 {[%emt 0:01:02]} Re8 {[%emt 0:04:45]} 16. Rfd1 {[%emt 0:03:38]} Qe7 {[%emt 0:26:20]} 17. Nxd4 {[%emt 0:03:50]} Bxd4 {[%emt 0:00:24]} 18. Bxd4 {[%emt 0:01:12]} Qxe2 {[%emt 0:01:08]} 19. Ba1 {[%emt 0:18:09]} Qxd2 {[%emt 0:03:50]} 20. Rxd2 {[%emt 0:00:03]} Rad8 {[%emt 0:00:24]} 21. Rxd8 {[%emt 0:03:36]} Rxd8 {[%emt 0:00:08]} 22. Bc3 {[%emt 0:05:42]} h5 {[%emt 0:01:00]} 23. Bf3 {[%emt 0:03:09]} h4 {[%emt 0:05:30]} 24. gxh4 {[%emt 0:01:53]} Nd4 {[%emt 0:03:41]} 25. Bxd4 {[%emt 0:08:00]} Rxd4 {[%emt 0:00:17]} 26. Rd1 {[%emt 0:02:03]} Rxh4 {[%emt 0:02:23]} 27. Bxb7 {[%emt 0:00:28]} Bh3 {[%emt 0:02:38]} 28. f3 {[%emt 0:00:42]} Rh5 {[%emt 0:00:43]} 29. Rd2 {[%emt 0:01:45]} Be6 {[%emt 0:07:26]} 30. Kf1 {[%emt 0:03:27]} Kf8 {[%emt 0:00:40]} 31. Ke1 {[%emt 0:00:31]} Ke7 {[%emt 0:00:58]} 32. Kd1 {[%emt 0:00:12]} Rb5 {[%emt 0:00:29]} 33. Bc6 {[%emt 0:03:41]} Rc5 {[%emt 0:00:56]} 34. Rc2 {[%emt 0:00:36]} Rh5 {[%emt 0:00:12]} 35. Kc1 {[%emt 0:03:00]} Kd6 {[%emt 0:00:01]} 36. Kb2 {[%emt 0:01:44]} Bf5 {[%emt 0:00:51]} 37. Be4 {[%emt 0:00:13]} Bxe4 {[%emt 0:00:27]} 38. fxe4 {[%emt 0:00:01]} Rh4 {[%emt 0:00:15]} 39. b4 {[%emt 0:11:03]} Rxe4 {[%emt 0:00:33]} 40. Kc3 {[%emt 0:00:25]} g5 {[%emt 0:00:51]} 41. a4 {[%emt 0:00:19]} a5 {[%emt 0:04:28]} 42. Rb2 {[%emt 0:01:11]} axb4+ {[%emt 0:00:46]} 43. Rxb4 {[%emt 0:00:20]} Re3+ {[%emt 0:00:37]} 44. Kc4 {[%emt 0:00:33]} Re2 {[%emt 0:01:03]} 45. h3 {[%emt 0:00:03]} f5 {[%emt 0:02:57]} 46. Rb3 {[%emt 0:00:47]} Ra2 {[%emt 0:01:02]} 47. Kb4 {[%emt 0:00:38]} f4 {[%emt 0:01:07]} 48. Rd3+ {[%emt 0:01:29]} Ke5 {[%emt 0:00:20]} 49. Rd8 {[%emt 0:00:03]} Rh2 {[%emt 0:01:39]} 50. Rg8 {[%emt 0:00:18]} Kf6 {[%emt 0:00:55]} 51. a5 {[%emt 0:00:42]} Rxh3 {[%emt 0:00:53]} 52. a6 {[%emt 0:00:04]} Rh7 {[%emt 0:00:13]} 53. Rf8+ {[%emt 0:00:09]} Ke5 {[%emt 0:00:11]} 54. Kc5 {[%emt 0:01:16]} g4 {[%emt 0:00:40]} 55. Re8+ {[%emt 0:01:09]} Kf5 {[%emt 0:00:08]} 56. Rf8+ {[%emt 0:00:36]} Ke4 {[%emt 0:00:10]} 57. Kb6 {[%emt 0:00:14]} g3 {[%emt 0:01:00]} 58. a7 {[%emt 0:00:08]} Rxa7 {[%emt 0:00:06]} 59. Kxa7 {[%emt 0:00:02]} g2 {[%emt 0:00:52]} 60. Rg8 {[%emt 0:00:39]} Ke5 0-1

[Event "Budapest IM-B ONE WEEK Feb 2024"]
[Site "Budapest"]
[Date "2024.02.28"]
[Round "5.5"]
[White "Nemeth, Zoltan"]
[Black "Matyassy, Lazar"]
[Result "1/2-1/2"]
[ECO "E20"]
[WhiteElo "2194"]
[BlackElo "2176"]
[Annotator "RC"]
[PlyCount "108"]
[EventDate "2024.02.25"]
[EventType "tourn"]
[EventCountry "HUN"]
[SourceTitle "playchess.com"]
[Source "ChessBase"]
[SourceQuality "1"]
[TimeControl "5400+30"]

1. d4 {[%emt 0:00:03]} Nf6 {[%emt 0:00:04]} 2. c4 {[%emt 0:01:05]} e6 {[%emt 0:00:08]} 3. Nc3 {[%emt 0:01:15]} Bb4 {[%emt 0:00:08]} 4. Bd2 {[%emt 0:01:22]} O-O {[%emt 0:00:53]} 5. Qc2 {[%emt 0:02:06]} c5 {[%emt 0:04:43]} 6. Nf3 {[%emt 0:01:21]} cxd4 {[%emt 0:02:26]} 7. Nxd4 {[%emt 0:00:03]} Nc6 {[%emt 0:00:11]} 8. e3 {[%emt 0:00:55]} Nxd4 {[%emt 0:01:55]} 9. exd4 {[%emt 0:00:05]} d5 {[%emt 0:00:06]} 10. a3 {[%emt 0:01:23]} Bxc3 {[%emt 0:03:57]} 11. bxc3 {[%emt 0:00:14]} Ne4 {[%emt 0:01:28]} 12. Bd3 {[%emt 0:00:27]} Nxd2 {[%emt 0:02:14]} 13. Qxd2 {[%emt 0:00:05]} dxc4 {[%emt 0:00:08]} 14. Bxc4 {[%emt 0:00:08]} b6 {[%emt 0:00:09]} 15. O-O {[%emt 0:00:31]} Bb7 {[%emt 0:00:05]} 16. Rfe1 {[%emt 0:01:32]} Rc8 {[%emt 0:06:22]} 17. Bd3 {[%emt 0:00:07]} g6 {[%emt 0:00:34]} 18. Re3 {[%emt 0:03:16]} Qg5 {[%emt 0:00:51]} 19. Bf1 {[%emt 0:01:20]} Bd5 {[%emt 0:02:35]} 20. a4 {[%emt 0:00:37]} Bc4 {[%emt 0:01:37]} 21. Bxc4 {[%emt 0:03:45]} Rxc4 {[%emt 0:00:13]} 22. Qe1 {[%emt 0:00:31]} Rfc8 {[%emt 0:08:11]} 23. a5 {[%emt 0:03:32]} bxa5 {[%emt 0:05:16]} 24. h4 {[%emt 0:06:44]} Qd5 {[%emt 0:17:41]} 25. Re5 {[%emt 0:01:58]} Qd6 {[%emt 0:02:03]} 26. Rexa5 {[%emt 0:14:49]} Rxc3 {[%emt 0:01:26]} 27. Qe5 {[%emt 0:02:00]} Rc1+ {[%emt 0:09:00]} 28. Rxc1 {[%emt 0:00:12]} Rxc1+ {[%emt 0:00:05]} 29. Kh2 {[%emt 0:00:04]} Qxe5+ {[%emt 0:00:48]} 30. dxe5 {[%emt 0:00:06]} Rc7 {[%emt 0:00:08]} 31. Kg3 {[%emt 0:01:01]} h6 {[%emt 0:07:12]} 32. Kf4 {[%emt 0:02:06]} Kg7 {[%emt 0:00:54]} 33. g4 {[%emt 0:01:11]} Rc4+ {[%emt 0:02:41]} 34. Kg3 {[%emt 0:01:00]} Rc7 {[%emt 0:00:06]} 35. h5 {[%emt 0:02:38]} g5 {[%emt 0:06:05]} 36. f3 {[%emt 0:03:05]} Rb7 {[%emt 0:00:34]} 37. Kf2 {[%emt 0:00:22]} Rb3 {[%emt 0:01:23]} 38. Ke2 {[%emt 0:00:51]} a6 {[%emt 0:00:50]} 39. Kf2 {[%emt 0:00:50]} Rb5 {[%emt 0:00:50]} 40. Rxa6 {[%emt 0:00:15]} Rxe5 {[%emt 0:00:05]} 41. Ra8 {[%emt 0:00:39]} Rb5 {[%emt 0:00:24]} 42. Ke3 {[%emt 0:00:38]} Rb4 {[%emt 0:01:26]} 43. Rc8 {[%emt 0:00:06]} Rf4 {[%emt 0:00:36]} 44. Re8 {[%emt 0:09:58]} Ra4 {[%emt 0:01:02]} 45. Rb8 {[%emt 0:07:04]} Ra1 {[%emt 0:01:27]} 46. Kf2 {[%emt 0:02:24]} Ra3 {[%emt 0:00:26]} 47. Re8 {[%emt 0:00:17]} Kf6 {[%emt 0:04:32]} 48. Rh8 {[%emt 0:00:22]} Kg7 {[%emt 0:01:05]} 49. Re8 {[%emt 0:00:06]} Ra4 {[%emt 0:01:01]} 50. Ke2 {[%emt 0:02:36]} f5 {[%emt 0:02:27]} 51. Rxe6 {[%emt 0:01:16]} fxg4 {[%emt 0:00:13]} 52. fxg4 {[%emt 0:00:05]} Rxg4 {[%emt 0:00:06]} 53. Re7+ {[%emt 0:00:06]} Kg8 {[%emt 0:01:08]} 54. Re6 {[%emt 0:00:05]} Kg7 {[%emt 0:00:17]} 1/2-1/2